{"text_format":"3","workbook":"xlsx","n_sheets":1,"sheets":["Uitleenblad bibliotheekboeken"],"not_rendered":{"defined_names":4},"read":"whole","date_system":"1900"}

{"sheet":"Uitleenblad bibliotheekboeken","index":0,"n_rows":9,"n_cols":8,"rows_kept":9,"merged":[[0,1,0,4],[0,5,0,6]]}
[null,"Uitleenblad voor bibliotheekboeken",{"$nulls":3},"DAGEN TOT TE LAAT: ",null,10]
["Te laat","LEERLING/STUDENT","E-MAILADRES CONTACTPERSOON","TELEFOONNR. CONTACTPERSOON","BOEKTITEL","DATUM GELEEND","DATUM TERUGGEBRACHT","DAGEN"]
[{"$f":"IFERROR(((Boeken[[#This Row],[DATUM GELEEND]]+AantalDagen)<TODAY())*(LEN(Boeken[[#This Row],[DATUM TERUGGEBRACHT]])=0)*(LEN(Boeken[[#This Row],[DATUM GELEEND]])>0),0)","v":0},"Maria Cameron","iemand@example.com","(021) 123 45 67","Het kleine huis op de prairie",{"$f":"DATE(YEAR(TODAY()),1,14)","v":"2018-01-14"},{"$f":"DATE(YEAR(TODAY()),1,21)","v":"2018-01-21"},{"$f":"IFERROR(IF(Boeken[[#This Row],[DATUM TERUGGEBRACHT]]=\"\",IF(Boeken[[#This Row],[DATUM GELEEND]]<>\"\", TODAY()-Boeken[[#This Row],[DATUM GELEEND]],\"\"),Boeken[[#This Row],[DATUM TERUGGEBRACHT]]-Boeken[[#This Row],[DATUM GELEEND]]), \"\")","v":7}]
[{"$f":"IFERROR(((Boeken[[#This Row],[DATUM GELEEND]]+AantalDagen)<TODAY())*(LEN(Boeken[[#This Row],[DATUM TERUGGEBRACHT]])=0)*(LEN(Boeken[[#This Row],[DATUM GELEEND]])>0),0)","v":0},"Stephen Deming","iemand@example.com","(021) 123 45 68","Charlotte's web",{"$f":"DATE(YEAR(TODAY()),2,15)","v":"2018-02-15"},{"$f":"DATE(YEAR(TODAY()),2,18)","v":"2018-02-18"},{"$f":"IFERROR(IF(Boeken[[#This Row],[DATUM TERUGGEBRACHT]]=\"\",IF(Boeken[[#This Row],[DATUM GELEEND]]<>\"\", TODAY()-Boeken[[#This Row],[DATUM GELEEND]],\"\"),Boeken[[#This Row],[DATUM TERUGGEBRACHT]]-Boeken[[#This Row],[DATUM GELEEND]]), \"\")","v":3}]
[{"$f":"IFERROR(((Boeken[[#This Row],[DATUM GELEEND]]+AantalDagen)<TODAY())*(LEN(Boeken[[#This Row],[DATUM TERUGGEBRACHT]])=0)*(LEN(Boeken[[#This Row],[DATUM GELEEND]])>0),0)","v":0},"Karel Florian","iemand@example.com","(021) 123 45 69","De verdwenen prinsessen of Milo's fantastische reis door het land van letters en cijfers",{"$f":"DATE(YEAR(TODAY()),2,17)","v":"2018-02-17"},{"$f":"DATE(YEAR(TODAY()),2,22)","v":"2018-02-22"},{"$f":"IFERROR(IF(Boeken[[#This Row],[DATUM TERUGGEBRACHT]]=\"\",IF(Boeken[[#This Row],[DATUM GELEEND]]<>\"\", TODAY()-Boeken[[#This Row],[DATUM GELEEND]],\"\"),Boeken[[#This Row],[DATUM TERUGGEBRACHT]]-Boeken[[#This Row],[DATUM GELEEND]]), \"\")","v":5}]
[{"$f":"IFERROR(((Boeken[[#This Row],[DATUM GELEEND]]+AantalDagen)<TODAY())*(LEN(Boeken[[#This Row],[DATUM TERUGGEBRACHT]])=0)*(LEN(Boeken[[#This Row],[DATUM GELEEND]])>0),0)","v":0},"Scott Haberkorn","iemand@example.com","(021) 123 45 60","Mevrouw Frisby en de ratten van NIMH",{"$f":"DATE(YEAR(TODAY()),2,17)","v":"2018-02-17"},{"$f":"DATE(YEAR(TODAY()),2,25)","v":"2018-02-25"},{"$f":"IFERROR(IF(Boeken[[#This Row],[DATUM TERUGGEBRACHT]]=\"\",IF(Boeken[[#This Row],[DATUM GELEEND]]<>\"\", TODAY()-Boeken[[#This Row],[DATUM GELEEND]],\"\"),Boeken[[#This Row],[DATUM TERUGGEBRACHT]]-Boeken[[#This Row],[DATUM GELEEND]]), \"\")","v":8}]
[{"$f":"IFERROR(((Boeken[[#This Row],[DATUM GELEEND]]+AantalDagen)<TODAY())*(LEN(Boeken[[#This Row],[DATUM TERUGGEBRACHT]])=0)*(LEN(Boeken[[#This Row],[DATUM GELEEND]])>0),0)","v":0},"Laure Claasen","iemand@example.com","(021) 123 45 61","Matilda",{"$f":"DATE(YEAR(TODAY()),2,18)","v":"2018-02-18"},{"$f":"DATE(YEAR(TODAY()),2,28)","v":"2018-02-28"},{"$f":"IFERROR(IF(Boeken[[#This Row],[DATUM TERUGGEBRACHT]]=\"\",IF(Boeken[[#This Row],[DATUM GELEEND]]<>\"\", TODAY()-Boeken[[#This Row],[DATUM GELEEND]],\"\"),Boeken[[#This Row],[DATUM TERUGGEBRACHT]]-Boeken[[#This Row],[DATUM GELEEND]]), \"\")","v":10}]
[{"$f":"IFERROR(((Boeken[[#This Row],[DATUM GELEEND]]+AantalDagen)<TODAY())*(LEN(Boeken[[#This Row],[DATUM TERUGGEBRACHT]])=0)*(LEN(Boeken[[#This Row],[DATUM GELEEND]])>0),0)","v":1},"Monica Krommenhoek","iemand@example.com","(021) 123 45 62","De Kronieken van Narnia",{"$f":"DATE(YEAR(TODAY()),1,23)","v":"2018-01-23"},null,{"$f":"IFERROR(IF(Boeken[[#This Row],[DATUM TERUGGEBRACHT]]=\"\",IF(Boeken[[#This Row],[DATUM GELEEND]]<>\"\", TODAY()-Boeken[[#This Row],[DATUM GELEEND]],\"\"),Boeken[[#This Row],[DATUM TERUGGEBRACHT]]-Boeken[[#This Row],[DATUM GELEEND]]), \"\")","v":162}]
[{"$f":"IFERROR(((Boeken[[#This Row],[DATUM GELEEND]]+AantalDagen)<TODAY())*(LEN(Boeken[[#This Row],[DATUM TERUGGEBRACHT]])=0)*(LEN(Boeken[[#This Row],[DATUM GELEEND]])>0),0)","v":0},"Sharon Salavaria","iemand@example.com","(021) 123 45 63","De heks van de merelvijver",{"$f":"TODAY()","v":"2018-07-04"},null,{"$f":"IFERROR(IF(Boeken[[#This Row],[DATUM TERUGGEBRACHT]]=\"\",IF(Boeken[[#This Row],[DATUM GELEEND]]<>\"\", TODAY()-Boeken[[#This Row],[DATUM GELEEND]],\"\"),Boeken[[#This Row],[DATUM TERUGGEBRACHT]]-Boeken[[#This Row],[DATUM GELEEND]]), \"\")","v":0}]